fUST/lending_fUST_20240727
["ID","MTS","AMOUNT","RATE_DAILY","PERIOD"]
[333369771,1722076247943,-1248.48,0.0001452,2]
[333369772,1722076247952,-500.0,0.0001452,2]
[333369773,1722076247963,-711.06,0.0001452,2]
[333369774,1722076247973,-733.17,0.0001452,2]
[333369775,1722076247983,-192.31962371,0.0001452,2]
[333369776,1722076247994,-879.46,0.0001452,2]
[333369777,1722076248005,-1104.05,0.0001452,2]
[333369778,1722076248017,-500.0,0.0001452,2]
[333369779,1722076248027,-500.0,0.0001452,2]
[333369780,1722076248039,-500.0,0.0001452,2]
[333369781,1722076248050,-5467.98,0.0001452,2]
[333369782,1722076248061,-500.0,0.0001452,2]
[333369783,1722076248071,-500.0,0.0001452,2]
[333369784,1722076248083,-595.74,0.0001452,2]
[333369785,1722076248096,-1011.87,0.0001452,2]
[333369786,1722076248108,-3096.0,0.0001452,2]
[333369787,1722076248120,-1200.13,0.0001452,2]
[333369788,1722076248130,-743.07,0.0001452,2]
[333369789,1722076248140,-920.93,0.0001452,2]
[333369790,1722076248151,-500.0,0.0001452,2]
[333369791,1722076248161,-1928.67,0.0001452,2]
[333369792,1722076248170,-666.49,0.0001452,2]
[333369793,1722076248182,-975.96,0.0001452,2]
[333369794,1722076248191,-658.67,0.0001452,2]
[333369795,1722076248202,-791.46,0.0001452,2]
[333369796,1722076248211,-500.0,0.0001452,2]
[333369797,1722076248221,-500.0,0.0001452,2]
[333369798,1722076248231,-1238.14,0.0001452,2]
[333369799,1722076248242,-500.0,0.0001452,2]
[333369800,1722076248251,-325.92656074,0.0001452,2]
[333369801,1722076248409,-743.55343926,0.0001452,2]
[333369802,1722076248419,-1574.84,0.0001452,2]
[333369803,1722076248429,-595.14,0.0001452,2]
[333369804,1722076248441,-173.53108583,0.0001452,2]
[333369805,1722076248453,-434.02247936,0.0001452,2]
[333369806,1722076248775,-2619.33927346,0.0001265,2]
[333369807,1722076248786,-2619.33927346,0.00012775,2]
[333369808,1722076248796,-500.0,0.00013698,2]
[333369809,1722076248807,-500.0,0.00013972,2]
[333369810,1722076248819,-500.0,0.00014246,2]
[333369811,1722076248829,-64.81643481,0.0001452,2]
[333369812,1722076248839,-563.57,0.0001452,2]
[333369813,1722076248850,-1592.34,0.0001452,2]
[333369814,1722076248860,-2502.19,0.0001452,2]
[333369815,1722076248870,-500.0,0.0001452,2]
[333369816,1722076248882,-2087.37,0.0001452,2]
[333369817,1722076248892,-500.0,0.0001452,2]
[333369818,1722076248903,-557.94,0.0001452,2]
[333369819,1722076248914,-830.73,0.0001452,2]
[333369820,1722076248924,-500.0,0.0001452,2]
[333369821,1722076248935,-200.0,0.000146,2]
[333369822,1722076248947,-154.68290005,0.00014691,2]
[333369823,1722076248957,-514.36552132,0.00014691,2]
[333369824,1722076248967,-229.152788,0.00014691,2]
[333369825,1722076248978,-500.0,0.00014708,7]
[333369826,1722076248988,-500.0,0.00014794,2]
[333369827,1722076248998,-500.0,0.00014794,2]
[333369828,1722076249008,-719.17,0.00014794,2]
[333369829,1722076249020,-500.0,0.00014794,2]
[333369830,1722076249030,-500.0,0.00014794,2]
[333369831,1722076249040,-152.408321,0.00014794,2]
[333369832,1722076249050,-536.94,0.00014794,2]
[333369833,1722076249060,-500.0,0.00014794,2]
[333369834,1722076249070,-151.0,0.00014794,2]
[333369835,1722076249081,-151.0,0.00014794,2]
[333369836,1722076249092,-536.86,0.00014794,2]
[333369837,1722076249107,-645.77,0.00014794,2]
[333369838,1722076249117,-500.0,0.00014794,2]
[333369839,1722076249128,-151.0,0.00014794,2]
[333369840,1722076249140,-500.0,0.00014794,2]
[333369841,1722076249150,-500.0,0.00014794,2]
[333369842,1722076249160,-500.0,0.00014794,2]
[333369843,1722076249171,-774.96,0.00014794,2]
[333369844,1722076249185,-500.0,0.00014794,2]
[333369845,1722076249196,-847.49,0.00014794,2]
[333369846,1722076249209,-151.0,0.00014794,2]
[333369847,1722076249221,-660.46,0.00014794,2]
[333369848,1722076249232,-500.0,0.00014794,2]
[333369849,1722076249243,-151.0,0.00014794,2]
[333369850,1722076249255,-972.3,0.00014794,2]
[333369851,1722076249265,-500.0,0.00014794,2]
[333369852,1722076249277,-151.0,0.00014794,2]
[333369853,1722076249288,-500.0,0.00014794,2]
[333369854,1722076249298,-500.0,0.00014794,2]
[333369855,1722076249309,-203.562741,0.00014794,2]
[333369856,1722076249320,-203.562741,0.00014794,2]
[333369857,1722076249331,-1071.32,0.00014794,2]
[333369858,1722076249341,-151.0,0.00014794,2]
[333369859,1722076249351,-151.0,0.00014794,2]
[333369860,1722076249363,-151.0,0.00014794,2]
[333369861,1722076249372,-679.68,0.00014794,2]
[333369862,1722076249383,-151.0,0.00014794,2]
[333369863,1722076249393,-1371.96,0.00014794,2]
[333369864,1722076249403,-1599.01,0.00014794,2]
[333369865,1722076249413,-500.0,0.00014794,2]
[333369866,1722076249425,-3653.9,0.00014794,2]
[333369867,1722076249559,-1336.56,0.00014794,2]
[333369868,1722076249570,-500.0,0.00014794,2]
[333369869,1722076249580,-807.87,0.00014794,2]
[333369870,1722076249591,-500.0,0.00014794,2]
[333369871,1722076249601,-887.21,0.00014794,2]
[333369872,1722076249612,-500.0,0.00014794,2]
[333369873,1722076249623,-151.0,0.00014794,2]
[333369874,1722076249633,-923.01,0.00014794,2]
[333369875,1722076249644,-151.0,0.00014794,2]
[333369876,1722076249655,-1914.3,0.00014794,2]
[333369877,1722076249666,-500.0,0.00014794,2]
[333369878,1722076249676,-563.92,0.00014794,2]
[333369879,1722076249686,-500.0,0.00014794,2]
[333369880,1722076249696,-249.244452,0.00014794,2]
[333369881,1722076249706,-1659.32,0.00014794,2]
[333369882,1722076249716,-249.244452,0.00014794,2]
[333369883,1722076249727,-500.0,0.00014794,2]
[333369884,1722076249737,-6635.23,0.00014794,2]
[333369885,1722076249747,-659.27,0.00014794,2]
[333369886,1722076249757,-500.0,0.00014794,2]
[333369887,1722076249767,-322.84334,0.00014794,2]
[333369888,1722076249778,-286.950984,0.00014794,2]
[333369889,1722076249788,-500.0,0.00014794,2]
[333369890,1722076249798,-322.84334,0.00014794,2]
[333369891,1722076249808,-2875.09,0.00014794,2]
[333369892,1722076249819,-739.18,0.00014794,2]
[333369893,1722076249829,-151.0,0.00014794,2]
[333369894,1722076249838,-151.0,0.00014794,2]
[333369895,1722076249847,-500.0,0.00014794,2]
[333369896,1722076249858,-2000.0,0.00014794,2]
[333369897,1722076249868,-1301.53,0.00014794,2]
[333369898,1722076249879,-500.0,0.00014794,2]
[333369899,1722076249891,-562.2,0.00014794,2]
[333369900,1722076249902,-1402.89,0.00014794,2]
[333369901,1722076249911,-151.0,0.00014794,2]
[333369902,1722076249922,-1248.48,0.00014794,2]
[333369903,1722076249932,-151.0,0.00014794,2]
[333369904,1722076249942,-500.0,0.00014794,2]
[333369905,1722076249952,-711.06,0.00014794,2]
[333369906,1722076249962,-733.17,0.00014794,2]
[333369907,1722076249972,-879.46,0.00014794,2]
[333369908,1722076249983,-1104.05,0.00014794,2]
[333369909,1722076249995,-500.0,0.00014794,2]
[333369910,1722076250006,-500.0,0.00014794,2]
[333369911,1722076250016,-500.0,0.00014794,2]
[333369912,1722076250025,-5467.98,0.00014794,2]
[333369913,1722076250035,-500.0,0.00014794,2]
[333369914,1722076250045,-500.0,0.00014794,2]
[333369915,1722076250055,-595.74,0.00014794,2]
[333369916,1722076250066,-1011.87,0.00014794,2]
[333369917,1722076250076,-3096.0,0.00014794,2]
[333369918,1722076250087,-1200.13,0.00014794,2]
[333369919,1722076250098,-743.07,0.00014794,2]
[333369920,1722076250107,-920.93,0.00014794,2]
[333369921,1722076250117,-500.0,0.00014794,2]
[333369922,1722076250127,-1928.67,0.00014794,2]
[333369923,1722076250136,-666.49,0.00014794,2]
[333369924,1722076250147,-975.96,0.00014794,2]
[333369925,1722076250157,-658.67,0.00014794,2]
[333369926,1722076250167,-791.46,0.00014794,2]
[333369927,1722076250181,-500.0,0.00014794,2]
[333369928,1722076250191,-1238.14,0.00014794,2]
[333369929,1722076250201,-500.0,0.00014794,2]
[333369930,1722076250211,-1069.48,0.00014794,2]
[333369931,1722076250221,-1574.84,0.00014794,2]
[333369932,1722076250231,-595.14,0.00014794,2]
[333369933,1722076250241,-672.37,0.00014794,2]
[333369934,1722076250252,-563.57,0.00014794,2]
[333369935,1722076250263,-1592.34,0.00014794,2]
[333369936,1722076250273,-2502.19,0.00014794,2]
[333369937,1722076250284,-500.0,0.00014794,2]
[333369938,1722076250295,-2087.37,0.00014794,2]
[333369939,1722076250306,-500.0,0.00014794,2]
[333369940,1722076250316,-557.94,0.00014794,2]
[333369941,1722076250327,-830.73,0.00014794,2]
[333369942,1722076250338,-500.0,0.00014794,2]
[333369943,1722076250348,-43513.73349772,0.00014865,2]
[333369944,1722076250605,-2037.35885071,0.000129,2]
[333369945,1722076250616,-581.98042275,0.000129,2]
[333369946,1722076250626,-500.0,0.00013698,2]
[333369947,1722076250635,-500.0,0.00013972,2]
[333369948,1722076250644,-3506.67931285,0.00014865,2]
[333369949,1722076250990,162.071583,0.00010959,2]
[333369958,1722076321256,154.71377951,9.999e-05,2]
[333369959,1722076342431,200.0,0.0001,2]
[333369962,1722076791852,273.37336231,9.9e-05,2]
[333369963,1722076799819,273.37336231,9.9e-05,2]
[333369964,1722076808050,273.37336231,9.9e-05,2]
[333369965,1722076816029,273.37336231,9.9e-05,2]
[333369966,1722076824319,273.37336231,9.9e-05,2]
[333369967,1722076833089,273.37336231,9.9e-05,2]
[333369968,1722076841333,273.37336231,9.9e-05,2]
[333369969,1722076849459,273.37336231,9.9e-05,2]
[333369970,1722076858418,273.37336231,9.9e-05,2]
[333369971,1722076866484,273.37336231,9.9e-05,2]
[333369972,1722076875065,273.37336231,9.9e-05,2]
[333369973,1722076883102,273.37336231,9.9e-05,2]
[333369974,1722076891973,273.37336231,9.9e-05,2]
[333369975,1722076900496,273.37336231,9.9e-05,2]
[333369976,1722076908817,273.37336231,9.9e-05,2]
[333369977,1722076917351,273.37336231,9.9e-05,2]
[333369978,1722076926250,273.37336231,9.9e-05,2]
[333369979,1722076934118,273.37336231,9.9e-05,2]
[333369980,1722076943027,273.37336231,9.9e-05,2]
[333369981,1722076950650,273.37336231,9.9e-05,2]
[333369982,1722076958752,273.37336231,9.9e-05,2]
[333369983,1722076967400,273.37336231,9.9e-05,2]
[333369984,1722076976305,273.37336231,9.9e-05,2]
[333369985,1722076984819,273.37336231,9.9e-05,2]
[333369986,1722076992927,273.37336231,9.9e-05,2]
[333369987,1722077000775,273.37336231,9.9e-05,2]
[333369988,1722077008916,273.37336231,9.9e-05,2]
[333369989,1722077017458,273.37336231,9.9e-05,2]
[333369990,1722077025558,273.37336231,9.9e-05,2]
[333369991,1722077033999,273.37336231,9.9e-05,2]
[333369992,1722077042264,273.37336231,9.9e-05,2]
[333369993,1722077050188,273.37336231,9.9e-05,2]
[333369995,1722077099220,941.81566876,9.999e-05,2]
[333369996,1722077111065,207.83899162,9.999e-05,2]
[333369997,1722077115217,941.81566876,9.999e-05,2]
[333369998,1722077146151,-183.05721049,0.00011219,2]
[333370000,1722077213108,-166.666666,0.00010959,2]
[333370001,1722077213135,-11.13300532,0.00011119,2]
[333370002,1722077227095,-200.0,0.00011119,2]
[333370003,1722077239092,-494.17033753,0.00011119,2]
[333370004,1722077252112,-56.51632847,0.00011119,2]
[333370005,1722077252134,-1.53338944,0.00011219,2]
[333370006,1722077252158,-233.404877,0.00011491,2]
[333370007,1722077252182,-40.37540509,0.00011513,2]
[333370011,1722077292228,941.97058039,9.999e-05,2]
[333370012,1722077345185,-162.071583,0.00010959,2]
[333370013,1722077349108,-507.798417,0.00010959,2]
[333370014,1722077349132,-270.25783892,0.00011513,2]
[333370015,1722077357130,-29.74216108,0.00011513,2]
[333370016,1722077357150,-300.0,0.00011513,2]
[333370017,1722077357170,-24900.0,0.00011514,2]
[333370018,1722077357191,-233.404877,0.00011523,2]
[333370019,1722077357213,-233.404877,0.00011554,2]
[333370020,1722077357236,-233.404877,0.00011586,2]
[333370021,1722077357259,-233.404877,0.00011617,2]
[333370022,1722077357281,-233.404877,0.00011649,2]
[333370023,1722077357306,-233.404877,0.0001168,2]
[333370024,1722077357330,-233.404877,0.00011712,2]
[333370025,1722077357352,-233.404877,0.00011743,2]
[333370026,1722077357373,-233.404877,0.00011775,2]
[333370027,1722077357396,-218.76165491,0.00011806,2]
[333370028,1722077362914,165.42397432,9.999e-05,2]
[333370029,1722077363130,-14.64322209,0.00011806,2]
[333370030,1722077363153,-233.404877,0.00011838,2]
[333370031,1722077363176,-233.404877,0.00011869,2]
[333370032,1722077363198,-233.404877,0.00011901,2]
[333370033,1722077363219,-233.404877,0.00011932,2]
[333370034,1722077363241,-233.404877,0.00011964,2]
[333370035,1722077363270,-233.404877,0.00011995,2]
[333370036,1722077363305,-233.404877,0.00012027,2]
[333370037,1722077363334,-233.404877,0.00012058,2]
[333370038,1722077363366,-233.404877,0.0001209,2]
[333370039,1722077367464,154.69833824,0.00012119,2]
[333370042,1722077412232,60.53943513,9.999e-05,2]
[333370043,1722077412252,250.0,9.999e-05,2]
[333370044,1722077412276,631.43114526,9.999e-05,2]
[333370072,1722077432636,-166.476783,0.00013425,2]
[333370073,1722077432646,-2168.9586294,0.00013497,2]
[333370074,1722077432655,-150.112233,0.000135,2]
[333370075,1722077432665,-573.5030721,0.00013516,2]
[333370076,1722077432674,-573.5030721,0.00013543,2]
[333370077,1722077432684,-300.0,0.00013547,2]
[333370078,1722077432693,-181.477012,0.00013548,2]
[333370079,1722077432702,-187.790804,0.00013548,2]
[333370080,1722077432712,-167.069487,0.00013548,2]
[333370081,1722077432721,-334.138976,0.00013548,2]
[333370082,1722077432730,-301.880306,0.00013548,2]
[333370083,1722077432740,-573.5030721,0.00013571,2]
[333370084,1722077432750,-998.00399202,0.00013577,2]
[333370085,1722077432760,-1258.4824868,0.00013578,2]
[333370086,1722077432773,-21345.82423805,0.00013578,2]
[333370087,1722077432785,-1251.47792908,0.00013578,2]
[333370091,1722077432813,-302.0,0.00013578,2]
[333370337,1722077440888,-36136.54430357,0.00013578,2]
[333370339,1722077440898,-76503.62412836,0.00013588,2]
[333370341,1722077440907,-2000.0,0.00013588,2]
[333370343,1722077440916,-1911.5503701,0.00013598,2]
[333370345,1722077440926,-1506.48666985,0.00013598,2]
[333370347,1722077440936,-1011.39369225,0.000136,2]
[333370349,1722077440945,-150.112233,0.000136,2]
[333370351,1722077440954,-150.112233,0.000136,2]
[333370353,1722077440964,-150.112233,0.000136,2]
[333370355,1722077440973,-150.112233,0.000136,2]
[333370357,1722077440983,-150.112233,0.000136,2]
[333370359,1722077440993,-150.112233,0.000136,2]
[333370361,1722077441002,-60294.3289575,0.00013688,2]
[333370363,1722077441011,-241177.31583,0.00013688,2]
[333370365,1722077441021,-40535.40987492,0.00013698,5]
[333370367,1722077441030,-4073.45,0.00013698,2]
[333370369,1722077441039,-4073.45,0.00013698,2]
[333370371,1722077441048,-4073.45,0.00013698,2]
[333370373,1722077441057,-4073.45,0.00013698,2]
[333370375,1722077441067,-4073.45,0.00013698,2]
[333370377,1722077441076,-4073.45,0.00013698,2]
[333370379,1722077441085,-4073.45,0.00013698,2]
[333370381,1722077441095,-4073.45,0.00013698,2]
[333370383,1722077441104,-4073.45,0.00013698,2]
[333370385,1722077441113,-4073.45,0.00013698,2]
[333370387,1722077441122,-4073.45,0.00013698,2]
[333370389,1722077441131,-4073.45,0.00013698,2]
[333370391,1722077441141,-4073.45,0.00013698,2]
[333370393,1722077441150,-4073.45,0.00013698,2]
[333370395,1722077441159,-4073.45,0.00013698,2]
[333370397,1722077441168,-4073.45,0.00013698,2]
[333370399,1722077441178,-3808.36504635,0.00013698,2]
[333370401,1722077441191,-265.08495365,0.00013698,2]
[333370403,1722077441200,-181.93841735,0.00013698,2]
[333370675,1722077443713,-3000.0,0.00013698,2]
[333370678,1722077443725,-891.51158265,0.00013698,2]
[333370680,1722077443736,-470.71808732,0.00013698,2]
[333370895,1722077446924,-3602.73191268,0.00013698,2]
[333370896,1722077446934,-4073.45,0.00013698,2]
[333370897,1722077446943,-4073.45,0.00013698,2]
[333370898,1722077446953,-3312.76808732,0.00013698,2]
[333370899,1722077446965,-760.68191268,0.00013698,2]
[333370900,1722077446975,-4073.45,0.00013698,2]
[333370901,1722077446986,-4073.62719735,0.00013698,2]
[333370903,1722077446996,-1729.26,0.00013698,2]
[333370905,1722077447006,-501.58311684,0.00013698,2]
[333370907,1722077447015,-506.49641637,0.00013698,2]
[333370909,1722077447024,-500.0,0.00013698,2]
[333370911,1722077447034,-500.0,0.00013698,2]
[333370913,1722077447044,-500.0,0.00013698,2]
[333370915,1722077447054,-500.0,0.00013698,2]
[333370917,1722077447063,-500.0,0.00013698,2]
[333370919,1722077447073,-500.0,0.00013698,2]
[333370921,1722077447082,-501.28173754,0.00013698,2]
[333370923,1722077447091,-500.0,0.00013698,2]
[333370925,1722077447101,-500.0,0.00013698,2]
[333370926,1722077447111,-500.0,0.00013698,2]
[333370928,1722077447120,-186.37924034,0.00013698,2]
[333370930,1722077447130,-500.0,0.00013698,2]
[333370932,1722077447139,-500.0,0.00013698,2]
[333370934,1722077447149,-718.05,0.00013698,2]
[333370936,1722077447158,-718.05,0.00013698,2]
[333370938,1722077447168,-718.05,0.00013698,2]
[333370940,1722077447177,-718.05,0.00013698,2]
[333370942,1722077447187,-718.05,0.00013698,2]
[333370944,1722077447197,-500.63230799,0.00013698,2]
[333370946,1722077447207,-718.05,0.00013698,2]
[333370948,1722077447217,-718.05,0.00013698,2]
[333370950,1722077447227,-718.05,0.00013698,2]
[333370952,1722077447237,-718.05,0.00013698,2]
[333370954,1722077447247,-718.05,0.00013698,2]
[333370956,1722077447256,-718.05,0.00013698,2]
[333370958,1722077447265,-718.05,0.00013698,2]
[333370960,1722077447275,-718.05,0.00013698,2]
[333370962,1722077447284,-718.05,0.00013698,2]
[333370964,1722077447294,-718.05,0.00013698,2]
[333370966,1722077447303,-718.05,0.00013698,2]
[333370968,1722077447313,-718.05,0.00013698,2]
[333370970,1722077447322,-718.05,0.00013698,2]
[333370972,1722077447332,-718.05,0.00013698,2]
[333370974,1722077447341,-718.05,0.00013698,2]
[333370976,1722077447351,-718.05,0.00013698,2]
[333370978,1722077447361,-718.05,0.00013698,2]
[333370980,1722077447370,-718.05,0.00013698,2]
[333370982,1722077447380,-718.08191323,0.00013698,2]
[333370984,1722077447389,-500.0,0.00013698,2]
[333370986,1722077447399,-500.0,0.00013698,2]
[333370988,1722077447409,-500.0,0.00013698,2]
[333370990,1722077447418,-500.0,0.00013698,2]
[333370992,1722077447428,-500.0,0.00013698,2]
[333370994,1722077447439,-500.0,0.00013698,2]
[333370997,1722077447449,-500.0,0.00013698,2]
[333370999,1722077447458,-500.0,0.00013698,2]
[333371001,1722077447468,-500.0,0.00013698,2]
[333371002,1722077447477,-500.0,0.00013698,2]
[333371005,1722077447487,-500.0,0.00013698,2]
[333371007,1722077447497,-500.0,0.00013698,2]
[333371008,1722077447507,-500.0,0.00013698,2]
[333371011,1722077447518,-500.0,0.00013698,2]
[333371013,1722077447530,-500.0,0.00013698,2]
[333371015,1722077447539,-500.0,0.00013698,2]
[333371017,1722077447549,-479.6951951,0.00013698,2]
[333371019,1722077447558,-500.0,0.00013698,2]
[333371021,1722077447568,-500.0,0.00013698,2]
[333371023,1722077447578,-500.89858288,0.00013698,2]
[333371025,1722077447587,-500.0,0.00013698,2]
[333371027,1722077447597,-309.55895035,0.00013698,2]
[333371029,1722077447606,-256.58956,0.00013698,2]
[333371031,1722077447616,-500.0,0.00013698,2]
[333371033,1722077447626,-500.0,0.00013698,2]
[333371035,1722077447635,-500.0,0.00013698,2]
[333371037,1722077447647,-535.953862,0.00013698,2]
[333371039,1722077447656,-500.0,0.00013698,2]
[333371041,1722077447667,-500.0,0.00013698,2]
[333371043,1722077447677,-500.0,0.00013698,2]
[333371045,1722077447686,-500.0,0.00013698,2]
[333371047,1722077447696,-500.0,0.00013698,2]
[333371049,1722077447706,-500.0,0.00013698,2]
[333371051,1722077447715,-500.0,0.00013698,2]
[333371053,1722077447725,-516.20170412,0.00013698,2]
[333371055,1722077447734,-274.90088582,0.00013698,2]
[333371057,1722077447746,-500.0,0.00013698,2]
[333371059,1722077447757,-500.0,0.00013698,2]
[333371061,1722077447767,-471.67904458,0.00013698,2]
[333371063,1722077447777,-500.0,0.00013698,2]
[333371065,1722077447786,-500.0,0.00013698,2]
[333371067,1722077447796,-500.0,0.00013698,2]
[333371069,1722077447806,-500.0,0.00013698,2]
[333371071,1722077447815,-541.25567237,0.00013698,2]
[333371073,1722077447825,-500.0,0.00013698,2]
[333371075,1722077447834,-500.0,0.00013698,2]
[333371077,1722077447844,-500.0,0.00013698,2]
[333371079,1722077447854,-573.50308911,0.00013698,2]
[333371082,1722077447864,-500.0,0.00013698,2]
[333371083,1722077447874,-500.0,0.00013698,2]
[333371085,1722077447884,-500.0,0.00013698,2]
[333371087,1722077447893,-500.0,0.00013698,2]
[333371089,1722077447903,-511.1363515,0.00013698,2]
[333371091,1722077447913,-500.0,0.00013698,2]
[333371094,1722077447923,-10000.0,0.00013698,2]
[333371096,1722077447935,-500.0,0.00013698,2]
[333371098,1722077447945,-500.0,0.00013698,2]
[333371099,1722077447954,-500.0,0.00013698,2]
[333371101,1722077447964,-500.0,0.00013698,2]
[333371103,1722077447973,-500.0,0.00013698,2]
[333371106,1722077447983,-509.90302234,0.00013698,2]
[333371107,1722077447992,-500.0,0.00013698,2]
[333371110,1722077448002,-500.0,0.00013698,2]
[333371111,1722077448012,-531.04409947,0.00013698,2]
[333371113,1722077448021,-500.0,0.00013698,2]
[333371115,1722077448030,-513.61051657,0.00013698,2]
[333371117,1722077448039,-500.0,0.00013698,2]
[333371119,1722077448049,-500.0,0.00013698,2]
[333371121,1722077448059,-500.0,0.00013698,2]
[333371123,1722077448068,-500.0,0.00013698,2]
[333371125,1722077448078,-500.0,0.00013698,2]
[333371127,1722077448088,-500.0,0.00013698,2]
[333371129,1722077448100,-500.0,0.00013698,2]
[333371131,1722077448110,-500.0,0.00013698,2]
[333371133,1722077448120,-500.0,0.00013698,2]
[333371135,1722077448129,-500.94646224,0.00013698,2]
[333371137,1722077448139,-513.5346058,0.00013698,2]
[333371139,1722077448149,-500.0,0.00013698,2]
[333371142,1722077448160,-500.0,0.00013698,2]
[333371144,1722077448170,-500.0,0.00013698,2]
[333371146,1722077448179,-500.0,0.00013698,2]
[333371148,1722077448189,-638.27415742,0.00013698,2]
[333371150,1722077448199,-500.0,0.00013698,2]
[333371152,1722077448209,-500.0,0.00013698,2]
[333371154,1722077448218,-259.81166719,0.00013698,2]
[333371156,1722077448228,-500.0,0.00013698,2]
[333371158,1722077448238,-500.0,0.00013698,2]
[333371160,1722077448248,-500.0,0.00013698,2]
[333371162,1722077448257,-506.33231662,0.00013698,2]
[333371164,1722077448268,-500.0,0.00013698,2]
[333371166,1722077448278,-500.0,0.00013698,2]
[333371168,1722077448288,-500.0,0.00013698,2]
[333371170,1722077448299,-500.0,0.00013698,2]
[333371172,1722077448309,-1181.45,0.00013698,2]
[333371174,1722077448319,-508.95692228,0.00013698,2]
[333371176,1722077448330,-500.0,0.00013698,2]
[333371178,1722077448339,-662.43,0.00013698,2]
[333371180,1722077448348,-500.0,0.00013698,2]
[333371182,1722077448358,-467.85424281,0.00013698,2]
[333371184,1722077448368,-500.0,0.00013698,2]
[333371186,1722077448378,-278.59547819,0.00013698,2]
[333371188,1722077448388,-500.0,0.00013698,2]
[333371190,1722077448398,-500.0,0.00013698,2]
[333371192,1722077448409,-500.0,0.00013698,2]
[333371194,1722077448419,-255.44817415,0.00013698,2]
[333371196,1722077448428,-500.0,0.00013698,2]
[333371198,1722077448439,-500.0,0.00013698,2]
[333371200,1722077448450,-500.0,0.00013698,2]
[333371202,1722077448460,-500.0,0.00013698,2]
[333371204,1722077448470,-500.0,0.00013698,2]
[333371206,1722077448480,-500.0,0.00013698,2]
[333371208,1722077448490,-500.0,0.00013698,2]
[333371210,1722077448500,-500.0,0.00013698,2]
[333371212,1722077448514,-500.0,0.00013698,2]
[333371215,1722077448524,-507.94651384,0.00013698,2]
[333371216,1722077448533,-500.0,0.00013698,2]
[333371219,1722077448545,-500.0,0.00013698,2]
[333371221,1722077448555,-500.0,0.00013698,2]
[333371222,1722077448565,-1009.2754988,0.00013698,2]
[333371224,1722077448575,-514.1411929,0.00013698,2]
[333371226,1722077448585,-500.0,0.00013698,2]
[333371229,1722077448599,-500.0,0.00013698,2]
[333371231,1722077448610,-500.0,0.00013698,2]
[333371233,1722077448622,-629.52,0.00013698,2]
[333371235,1722077448632,-500.0,0.00013698,2]
[333371247,1722077448766,-500.0,0.00013698,2]
[333371249,1722077448776,-500.0,0.00013698,2]
[333371251,1722077448786,-500.0,0.00013698,2]
[333371252,1722077448797,-517.88258204,0.00013698,2]
[333371253,1722077448807,-500.0,0.00013698,2]
[333371254,1722077448817,-500.0,0.00013698,2]
[333371255,1722077448827,-500.0,0.00013698,2]
[333371256,1722077448836,-500.0,0.00013698,2]
[333371257,1722077448846,-500.0,0.00013698,2]
[333371259,1722077448856,-500.0,0.00013698,2]
[333371261,1722077448866,-1348.23,0.00013698,2]
[333371263,1722077448876,-500.0,0.00013698,2]
[333371265,1722077448887,-500.0,0.00013698,2]
[333371267,1722077448899,-500.0,0.00013698,2]
[333371269,1722077448909,-297.62054279,0.00013698,2]
[333371271,1722077448919,-500.0,0.00013698,2]